bitfinex/quotes_ETHUSD_20241024
["timestamp","ask_amount","ask_price","bid_price","bid_amount"]
[1729785076514,3.96245,2523.7,2523.5,0.7776]
[1729785077446,3.96259,2523.6,2523.5,0.7776]
[1729785077643,3.96259,2523.6,2523.1,0.7569]
[1729785077644,3.96288,2523.5,2523.1,0.7569]
[1729785078148,3.96309,2523.3,2523.1,0.7569]
[1729785078724,3.96284,2523.5,2523.1,0.7569]
[1729785079749,7.92567,2523.5,2523.1,0.7569]
[1729785079956,3.96283,2523.5,2523.1,0.7569]
[1729785080119,3.96276,2523.5,2523.1,0.7569]
[1729785080311,3.96227,2523.8,2523.4,3.31214266]
[1729785080653,3.96252,2523.7,2523.5,0.7753]
[1729785081224,3.96259,2523.6,2523.5,0.7753]
[1729785081728,3.96243,2523.7,2523.5,0.7753]
[1729785082048,3.0,2524.1,2523.5,0.7753]
[1729785082366,3.96251,2523.7,2523.5,0.7753]
[1729785082529,3.96229,2523.8,2523.5,0.7753]
[1729785082943,3.96253,2523.7,2523.5,0.7753]
[1729785083111,7.92506,2523.7,2523.5,0.7753]
[1729785083314,3.96253,2523.7,2523.5,0.7753]
[1729785083635,3.96225,2523.9,2523.5,4.73803]
[1729785083828,3.96225,2523.9,2523.6,3.31214266]
[1729785084170,3.96133,2524.4,2523.7,3.9623]
[1729785084348,3.96133,2524.4,2524.0,3.31214266]
[1729785084548,3.96114,2524.6,2524.1,0.7589]
[1729785084926,3.96101,2524.7,2524.2,3.96162]
[1729785085133,3.96106,2524.6,2524.2,7.27376266]
[1729785085567,3.96106,2524.6,2524.2,3.31214266]
[1729785085860,3.96101,2524.7,2524.3,0.8181]
[1729785086292,3.96066,2524.9,2524.6,3.31214266]
[1729785086425,4.656726,2524.9,2524.7,0.8181]
[1729785086623,3.96033,2525.1,2524.7,0.8181]
[1729785086857,3.96033,2525.1,2524.8,3.31214266]
[1729785087057,3.96062,2524.9,2524.7,0.8181]
[1729785087272,3.96054,2525.0,2524.7,0.8181]
[1729785087556,3.9602,2525.2,2524.7,0.8181]
[1729785087557,3.96055,2524.9,2524.7,0.8181]
[1729785087756,3.96039,2525.0,2524.7,0.8181]
[1729785088162,0.39602,2525.1,2524.8,3.31214266]
[1729785088335,4.35636,2525.1,2524.8,3.31214266]
[1729785089760,3.96009,2525.2,2524.8,3.31214266]
[1729785090065,3.96004,2525.3,2525.0,3.31214266]
[1729785090066,3.96003,2525.3,2525.0,3.31214266]
[1729785090257,3.95986,2525.4,2525.1,0.7715]
[1729785090462,3.96008,2525.2,2525.1,0.7715]
[1729785090768,0.76785126,2525.4,2524.7,0.7715]
[1729785090937,0.76785126,2525.4,2524.8,3.31214266]
[1729785091139,3.96041,2525.0,2524.8,3.31214266]
[1729785091772,3.96041,2525.0,2524.7,0.7715]
[1729785092283,3.96057,2524.9,2524.7,0.7715]
[1729785092488,3.96021,2525.2,2524.7,0.7715]
[1729785092783,3.55,2525.6,2524.7,0.7715]
[1729785092980,3.96064,2524.9,2524.7,0.7715]
[1729785093572,3.96045,2525.0,2524.7,0.7715]
[1729785094594,3.96065,2524.9,2524.7,0.7715]
[1729785094754,3.96055,2524.9,2524.7,0.7715]
[1729785094954,3.9607,2524.8,2524.7,0.7715]
[1729785095153,3.96056,2524.9,2524.7,0.7715]
[1729785095353,3.9607,2524.8,2524.7,0.7715]
[1729785095686,3.9607,2524.8,2524.4,0.8181]
[1729785095687,3.961,2524.7,2524.4,0.8181]
[1729785095854,3.96112,2524.6,2524.4,0.8181]
[1729785096254,3.96118,2524.5,2524.4,0.8181]
[1729785096587,3.96158,2524.3,2524.1,0.8245]
[1729785096788,3.96142,2524.4,2524.1,0.8245]
[1729785097293,3.96165,2524.2,2524.1,0.8245]
[1729785097498,3.96142,2524.4,2524.1,0.8245]
[1729785097656,3.96165,2524.2,2524.1,0.8245]
[1729785097849,3.96152,2524.3,2524.1,0.8245]
[1729785098359,3.96135,2524.4,2524.1,0.8245]
[1729785098998,3.96165,2524.2,2524.1,0.8245]
[1729785100019,3.96182,2524.1,2523.9,0.7829]
[1729785100512,3.96165,2524.2,2523.9,0.7829]
[1729785101077,7.92344,2524.2,2523.9,0.7829]
[1729785101415,3.9619,2524.1,2523.9,0.7829]
[1729785101616,3.96196,2524.0,2523.9,0.7829]
[1729785101788,3.96238,2523.8,2523.6,0.7566]
[1729785101995,7.92479,2523.8,2523.6,0.7566]
[1729785102315,3.96234,2523.8,2523.6,0.7566]
[1729785102520,3.96243,2523.7,2523.6,0.7566]
[1729785102882,3.9626,2523.6,2523.3,0.7723]
[1729785103085,3.96243,2523.7,2523.3,0.7723]
[1729785103311,3.96229,2523.8,2523.3,4.73529]
[1729785103613,3.96246,2523.7,2523.3,0.7723]
[1729785103816,4.8422475,2524.2,2523.3,0.7723]
[1729785103981,3.96229,2523.8,2523.3,4.73526]
[1729785105025,3.96247,2523.7,2523.3,0.7723]
[1729785105525,3.96229,2523.8,2523.3,4.73534]
[1729785105891,3.96229,2523.8,2523.3,0.7723]
[1729785106196,3.96243,2523.7,2523.3,0.7723]
[1729785106985,0.4861,2523.9,2523.3,0.7723]
[1729785107223,3.9629,2523.4,2523.3,0.7723]
[1729785107628,3.96306,2523.3,2523.0,0.8154]
[1729785107925,3.9633,2523.2,2523.0,0.8154]
[1729785109327,3.96309,2523.3,2523.0,0.8154]
[1729785110322,3.96284,2523.5,2523.0,0.8154]
[1729785110494,3.96304,2523.4,2523.0,0.8154]
[1729785110826,3.96313,2523.3,2523.0,0.8154]
[1729785111035,3.81313,2523.3,2523.0,0.8154]
[1729785113153,3.96292,2523.4,2523.0,0.8154]
[1729785113426,3.96309,2523.3,2523.0,0.8154]
[1729785115096,3.9633,2523.2,2523.0,0.8154]
[1729785115497,3.96309,2523.3,2523.0,0.8154]
[1729785115693,7.92624,2523.3,2523.0,0.8154]
[1729785115940,3.96309,2523.3,2523.0,0.8154]
[1729785116437,3.96337,2523.1,2523.0,0.8154]
[1729785116639,3.96337,2523.1,2522.7,0.8016]
[1729785116942,3.96337,2523.1,2522.8,0.41137427]
[1729785118108,3.9636,2523.0,2522.8,0.41137427]
[1729785118337,3.96337,2523.1,2522.8,0.41137427]
[1729785119150,3.96328,2523.2,2522.8,0.41137427]
[1729785120234,3.96266,2523.6,2523.0,4.09534266]
[1729785120432,3.96283,2523.5,2523.0,4.95030838]
[1729785120740,4.44839,2523.8,2523.0,1.63816572]
[1729785120741,3.96329,2523.2,2523.0,1.63816572]
[1729785120947,3.96294,2523.4,2523.0,1.63816572]
[1729785121150,3.96243,2523.7,2523.0,1.63816572]
[1729785121455,3.96302,2523.4,2523.0,1.63816572]
[1729785121660,3.96314,2523.3,2523.1,0.56017157]
[1729785121858,3.96279,2523.5,2523.0,1.63816572]
[1729785122063,3.96279,2523.5,2523.0,5.60161572]
[1729785122666,3.96279,2523.5,2523.0,9.56506572]
[1729785122832,0.4861,2523.8,2523.0,1.63816572]
[1729785123030,3.96287,2523.5,2523.0,5.60168572]
[1729785123242,3.96287,2523.5,2523.1,0.95652957]
[1729785124299,3.96292,2523.4,2523.1,0.95652957]
[1729785124568,3.96287,2523.5,2523.1,4.91986957]
[1729785124725,3.96254,2523.7,2523.2,0.8221]
[1729785124926,3.96232,2523.8,2523.2,8.09737266]
[1729785125125,3.96232,2523.8,2523.3,4.9555529]
[1729785125326,3.96265,2523.6,2523.3,0.91331632]
[1729785125760,3.96265,2523.6,2523.2,0.8221]
[1729785125761,3.96306,2523.3,2523.2,0.8221]
[1729785126077,3.96361,2523.0,2522.7,0.8221]
[1729785126381,3.96384,2522.8,2522.7,0.8221]
[1729785126676,3.96402,2522.7,2522.5,0.8221]
[1729785126887,3.96384,2522.8,2522.5,0.8221]
[1729785127054,3.96384,2522.8,2522.5,1.697221]
[1729785127252,3.96412,2522.7,2522.5,1.697221]
[1729785127554,3.96384,2522.8,2522.5,0.8221]
[1729785127742,3.96362,2523.0,2522.5,0.8221]
[1729785127942,3.96371,2522.9,2522.5,4.78641]
[1729785128166,3.96385,2522.8,2522.5,0.8221]
[1729785130138,3.96371,2522.9,2522.5,0.8221]
[1729785130343,3.96386,2522.8,2522.5,0.8221]
[1729785130683,3.96402,2522.7,2522.5,0.8221]
[1729785130855,3.96363,2523.0,2522.5,0.8221]
[1729785131190,3.96369,2522.9,2522.5,0.8221]
[1729785131678,3.96399,2522.8,2522.5,0.8221]
[1729785132744,3.96381,2522.9,2522.5,0.8221]
[1729785133089,3.96367,2523.0,2522.5,0.8221]
[1729785133298,3.96385,2522.8,2522.5,0.8221]
[1729785133599,7.9278,2522.8,2522.5,0.8221]
[1729785133766,3.96385,2522.8,2522.5,0.8221]
[1729785134271,3.96404,2522.7,2522.5,0.8221]
[1729785134908,3.96464,2522.3,2522.1,0.8259]
[1729785135055,3.96449,2522.4,2522.1,0.8259]
[1729785136697,7.92904,2522.4,2522.1,0.8259]
[1729785137057,3.96434,2522.5,2522.1,4.79075]
[1729785137201,3.96458,2522.4,2522.1,0.8259]
[1729785137403,3.96458,2522.4,2522.1,1.69824002]
[1729785137607,3.96463,2522.3,2522.1,1.69824002]
[1729785137789,3.96434,2522.5,2522.1,1.69824002]
[1729785138310,3.96456,2522.4,2522.1,1.69824002]
[1729785138516,3.96467,2522.3,2522.1,0.8259]
[1729785138709,0.4861,2522.9,2522.1,0.8259]
[1729785139012,3.96448,2522.4,2522.1,0.8259]
[1729785139211,7.92904,2522.4,2522.1,0.8259]
[1729785139373,3.96448,2522.4,2522.1,0.8259]
[1729785139709,3.96464,2522.3,2522.1,0.8259]
[1729785140216,3.96394,2522.8,2522.2,3.31214266]
[1729785140376,3.96412,2522.7,2522.3,3.96463]
[1729785140808,3.96391,2522.8,2522.4,0.7866]
[1729785141208,3.96407,2522.7,2522.4,0.7866]
[1729785141483,3.96422,2522.6,2522.4,0.7866]
[1729785142483,3.0,2523.0,2522.4,0.7866]
[1729785142831,3.96403,2522.7,2522.4,0.7866]
[1729785143117,3.96423,2522.6,2522.4,0.7866]
[1729785144082,3.96403,2522.7,2522.2,0.785]
[1729785144083,3.96432,2522.5,2522.2,0.785]
[1729785144314,3.96459,2522.4,2522.2,0.785]
[1729785145186,3.96434,2522.5,2522.2,0.785]
[1729785146322,3.96453,2522.4,2522.2,0.785]
[1729785146914,0.4861,2522.9,2522.2,0.785]
[1729785147113,1.379631,2522.9,2522.2,0.785]
[1729785147312,3.96441,2522.5,2522.2,0.785]
[1729785148899,3.96392,2522.8,2522.2,8.1410853]
[1729785149195,3.96392,2522.8,2522.4,3.96446]
[1729785149401,3.96363,2523.0,2522.6,0.7852]
[1729785149402,3.96371,2522.9,2522.6,0.7852]
[1729785150331,3.96387,2522.8,2522.6,0.7852]
[1729785151340,3.964,2522.7,2522.6,0.7852]
[1729785151549,0.4861,2522.8,2522.3,0.7641]
[1729785151848,7.92885,2522.5,2522.1,0.7641]
[1729785152618,3.96459,2522.4,2522.1,0.7641]
[1729785153144,4.44999,2522.8,2522.1,0.7641]
[1729785153145,3.96414,2522.7,2522.1,0.7641]
[1729785153348,3.96414,2522.7,2522.2,3.31214266]
[1729785153349,3.96407,2522.7,2522.2,3.31214266]
[1729785153641,7.92817,2522.7,2522.2,3.78972774]
[1729785153846,3.96407,2522.7,2522.3,0.8299]
[1729785154138,3.96422,2522.6,2522.3,0.8299]
[1729785154448,3.96407,2522.7,2522.3,0.8299]
[1729785154606,7.92816,2522.7,2522.3,0.8299]
[1729785154969,3.96407,2522.7,2522.3,0.8299]
[1729785155241,3.9642,2522.6,2522.3,1.68833177]
[1729785155609,7.92814,2522.7,2522.3,1.68833177]
[1729785156207,3.96424,2522.6,2522.3,1.68833177]
[1729785157143,3.96424,2522.6,2522.3,0.8299]
[1729785157355,4.44964,2523.0,2522.1,0.7734]
[1729785157356,3.96447,2522.4,2522.1,0.7734]
[1729785157646,3.96453,2522.4,2522.1,0.7734]
[1729785157819,4.45049,2522.5,2522.1,0.7734]
[1729785158021,3.9647,2522.3,2522.1,0.7734]
[1729785158706,3.96462,2522.4,2522.1,1.30928575]
[1729785158940,3.96464,2522.3,2522.1,1.30928575]
[1729785159256,3.96464,2522.3,2522.1,0.7734]
[1729785159615,3.9645,2522.4,2522.1,0.7734]
[1729785159948,3.9647,2522.3,2522.1,0.7734]
[1729785160844,3.96471,2522.3,2522.1,0.7734]
[1729785161428,3.96479,2522.2,2522.1,0.7734]
[1729785161737,3.96471,2522.3,2522.1,0.7734]
[1729785161941,3.96448,2522.4,2522.1,0.7734]
[1729785162256,3.96432,2522.5,2522.1,5.608624]
[1729785163035,3.9641,2522.7,2522.3,3.96463]
[1729785163238,3.96371,2522.9,2522.5,3.96423]
[1729785163457,3.96371,2522.9,2522.4,4.78295]
[1729785163660,3.96371,2522.9,2522.5,3.96424]
[1729785163873,3.96393,2522.8,2522.5,0.874719]
[1729785164237,3.9636,2523.0,2522.5,0.874719]
[1729785164470,3.96383,2522.9,2522.4,0.8185]
[1729785164668,5.13797928,2523.2,2522.4,0.8185]
[1729785164875,3.96376,2522.9,2522.4,4.78282]
[1729785165838,3.96376,2522.9,2522.5,3.96429]
[1729785166046,4.51351,2523.1,2522.6,3.96408]
[1729785166047,3.96347,2523.1,2522.6,3.96408]
[1729785166267,3.96347,2523.1,2522.8,0.7679]
[1729785167075,3.96329,2523.2,2522.8,4.73167]
[1729785167236,15.33315,2523.3,2522.9,3.96368]
[1729785167487,11.37,2523.3,2523.0,3.9635]
[1729785167654,11.37,2523.4,2523.0,1.20071627]
[1729785167975,3.96319,2523.3,2522.9,3.96362]
[1729785168484,3.96292,2523.4,2522.9,3.96356]
[1729785168891,3.96292,2523.4,2522.8,4.73174]
[1729785169090,3.96359,2523.0,2522.8,0.7679]
[1729785169661,3.96359,2523.0,2522.6,0.8269]
[1729785169857,3.96377,2522.9,2522.6,0.8269]
[1729785171160,3.96349,2523.1,2522.6,0.8269]
[1729785171384,3.96376,2522.9,2522.6,0.8269]
[1729785171686,3.96369,2522.9,2522.6,0.8269]
[1729785172075,7.92752,2522.9,2522.6,0.8269]
[1729785172375,7.92698,2523.1,2522.6,0.8269]
[1729785172582,3.9636,2523.0,2522.6,0.8269]
[1729785172740,3.96381,2522.9,2522.6,0.8269]
[1729785173147,3.964,2522.7,2522.6,0.8269]
[1729785173644,3.96355,2523.0,2522.3,0.7905]
[1729785173854,3.96427,2522.6,2522.3,0.7905]
[1729785174883,3.96398,2522.8,2522.3,0.7905]
[1729785175047,3.96414,2522.7,2522.3,0.7905]
[1729785176292,3.96427,2522.6,2522.3,0.7905]
[1729785176508,3.96454,2522.4,2522.1,0.799]
[1729785176793,3.96458,2522.4,2522.1,0.799]
[1729785176950,3.96432,2522.5,2522.1,0.799]
[1729785177283,3.96447,2522.4,2522.1,0.799]
[1729785178563,7.92884,2522.5,2522.1,0.799]
[1729785178768,3.96453,2522.4,2522.1,0.799]
[1729785178992,3.96471,2522.3,2522.1,0.799]
[1729785179865,3.96436,2522.5,2521.9,7.93042]
[1729785179866,4.45042,2522.5,2521.9,0.8092]
[1729785180071,3.96463,2522.3,2521.9,0.8092]
[1729785180392,3.96542,2521.8,2521.5,0.8092]
[1729785180577,3.96557,2521.7,2521.5,0.8092]
[1729785181205,3.96573,2521.6,2521.3,0.9342015]
[1729785181418,3.96605,2521.4,2521.3,0.9342015]
[1729785181574,3.96605,2521.4,2521.3,0.1250015]
[1729785181916,5.309246,2521.4,2521.3,0.1250015]
[1729785185706,5.795346,2521.4,2521.3,0.1250015]
[1729785186698,8.795346,2521.4,2521.3,0.1250015]
[1729785187211,8.795346,2521.4,2521.3,0.0750015]
[1729785189294,23.98618808,2521.4,2521.3,1.5e-06]
[1729785189815,23.47748866,2521.4,2521.3,1.5e-06]
[1729785190120,25.53736191,2521.4,2521.3,1.5e-06]
[1729785190274,25.12398541,2521.4,2521.3,1.5e-06]
[1729785192118,23.47748866,2521.4,2521.3,1.5e-06]
[1729785192334,23.47748866,2521.4,2519.6,0.00346743]
[1729785192335,3.96848,2519.9,2519.6,0.00346743]
[1729785192476,3.96848,2519.9,2519.6,0.00146743]
[1729785193003,3.96859,2519.8,2519.6,0.00146743]
[1729785193396,3.96853,2519.9,2519.6,0.00146743]
[1729785193592,3.96867,2519.8,2519.3,4.72822]
[1729785193834,3.96867,2519.8,2519.3,5.635038]
[1729785193992,3.96836,2520.0,2519.4,3.96919]
[1729785194198,3.96848,2519.9,2519.4,3.96919]
[1729785194917,3.96848,2519.9,2519.4,7.9383]
[1729785195306,3.96873,2519.7,2519.3,5.635158]
[1729785195516,3.96858,2519.8,2519.3,5.635158]
[1729785196111,3.96858,2519.8,2519.3,9.604498]
[1729785196295,3.96826,2520.0,2519.5,3.96897]
[1729785196617,3.96828,2520.0,2519.5,3.96897]
[1729785196821,3.96828,2520.0,2519.5,3.96896]
[1729785197535,3.96821,2520.1,2519.5,3.96896]
[1729785197536,3.96842,2519.9,2519.5,3.96896]
[1729785199102,3.96879,2519.7,2519.4,0.9974898]
[1729785199430,3.96868,2519.8,2519.4,0.9974898]
[1729785199604,3.96825,2520.0,2519.4,4.9665898]
[1729785199798,3.96785,2520.3,2519.6,7.28097266]
[1729785199993,3.96762,2520.4,2519.9,0.7817]
[1729785200192,0.4861,2520.8,2519.9,0.7817]
[1729785200395,3.96811,2520.1,2519.9,0.7817]
[1729785200634,3.96793,2520.2,2519.9,0.7817]
[1729785200980,3.31214266,2520.9,2520.1,0.7817]
[1729785201250,3.96778,2520.3,2520.1,0.7817]
[1729785201422,3.96753,2520.5,2520.1,0.7817]
[1729785201626,3.96764,2520.4,2520.1,0.7817]
[1729785201824,3.96763,2520.4,2520.1,0.7817]
[1729785202751,3.96753,2520.5,2520.1,0.7817]
[1729785203126,3.96775,2520.4,2520.1,0.7817]
[1729785203427,3.96753,2520.5,2520.1,0.7817]
[1729785203914,3.96699,2520.8,2520.2,3.96786]
[1729785204238,3.96699,2520.8,2520.5,0.8243]
[1729785204822,3.0,2520.9,2520.5,4.7917]
[1729785205020,3.96668,2521.0,2520.5,4.79164]
[1729785205244,3.96668,2521.0,2520.5,0.8243]
[1729785205556,3.96668,2521.0,2520.5,4.79175]
[1729785205744,3.96668,2521.0,2520.5,0.8243]
[1729785206058,7.93344,2521.0,2520.5,5.270937]
[1729785206268,3.96706,2520.8,2520.5,0.8243]
[1729785206756,3.96654,2521.1,2520.7,3.96713]
[1729785207327,3.96654,2521.1,2520.4,3.31214266]
[1729785207328,3.96645,2521.2,2520.8,3.96698]
[1729785207523,3.96645,2521.2,2520.9,0.7982]
[1729785208622,3.96667,2521.1,2520.9,0.7982]
[1729785208823,3.96667,2521.0,2520.9,0.7982]
[1729785209564,3.96667,2521.0,2520.6,0.7864]
[1729785209931,3.96667,2521.0,2520.6,4.75369]
[1729785210126,3.96667,2521.0,2520.6,5.95701127]
[1729785210662,3.0,2521.6,2520.6,5.95701127]
[1729785210960,7.93328,2521.1,2520.6,5.95701127]
[1729785211130,3.96671,2521.0,2520.6,5.95701127]
[1729785211938,3.96661,2521.1,2520.6,1.98972127]
[1729785212167,3.96669,2521.0,2520.6,0.7864]
[1729785214066,0.55,2521.5,2520.6,0.7864]
[1729785214231,3.96692,2520.9,2520.6,0.7864]
[1729785214566,0.4861,2521.2,2520.6,0.7864]
[1729785214567,3.96715,2520.7,2520.6,0.7864]
[1729785214730,0.4861,2521.2,2520.4,0.7612]
[1729785215067,3.96784,2520.3,2520.0,0.7612]
[1729785215254,3.96809,2520.1,2520.0,0.7612]
[1729785215823,3.96834,2520.0,2519.8,0.7793]
[1729785216558,3.96811,2520.1,2519.8,0.7793]
[1729785216928,3.96828,2520.0,2519.8,0.7793]
[1729785217128,3.96816,2520.1,2519.8,0.7793]
[1729785217832,4.45365,2520.5,2519.8,0.7793]
[1729785217833,3.96788,2520.3,2519.8,0.7793]
[1729785218132,3.96828,2520.0,2519.8,0.7793]
[1729785219365,3.9681,2520.1,2519.8,0.7793]
[1729785219879,0.55,2520.3,2519.8,0.7793]
[1729785220081,3.96794,2520.2,2519.8,0.7793]
[1729785220235,7.8780238,2520.2,2519.8,0.7793]
[1729785220733,0.55,2520.3,2519.8,0.7793]
[1729785220734,3.9679,2520.3,2519.8,0.7793]
[1729785220939,3.96772,2520.4,2519.8,4.74773]
[1729785221252,3.96744,2520.6,2520.0,3.96817]
[1729785221577,0.4861,2520.8,2520.4,3.96755]
[1729785221578,3.96708,2520.8,2520.4,3.96755]
[1729785221874,3.96708,2520.8,2520.1,4.73952]
[1729785221875,3.96742,2520.6,2520.1,4.73952]
[1729785222471,3.9671,2520.8,2520.2,3.39149786]
[1729785222659,3.96717,2520.7,2520.3,4.38393979]
[1729785224577,3.96717,2520.7,2520.3,0.41629979]
[1729785224772,3.96732,2520.6,2520.1,0.7715]
[1729785225088,3.96752,2520.5,2520.1,4.73953]
[1729785225292,3.96723,2520.7,2520.2,3.96785]
[1729785225581,3.55,2520.9,2520.1,4.73948]
[1729785225582,3.96683,2520.9,2520.1,4.73948]
[1729785225784,3.9674,2520.6,2520.1,9.51266227]
[1729785225968,3.9674,2520.6,2520.1,5.54464227]
[1729785226361,3.9674,2520.6,2520.2,3.96784]
[1729785226750,3.96712,2520.8,2520.4,3.9676]
[1729785226949,3.96712,2520.8,2520.5,0.7908]
[1729785227649,3.9668,2521.0,2520.5,0.7908]
[1729785227887,3.96675,2521.0,2520.5,5.234056]
[1729785228089,3.96627,2521.3,2520.8,3.96691]
[1729785228394,3.96627,2521.3,2520.6,3.39148419]
[1729785228395,3.96607,2521.4,2521.0,3.96662]
[1729785228591,3.96582,2521.6,2521.0,3.96662]
[1729785228592,3.96582,2521.6,2521.0,3.39147226]
[1729785228751,0.4861,2521.8,2520.9,0.7544]
[1729785228752,3.96557,2521.7,2520.9,0.7544]
[1729785228953,0.4861,2521.8,2520.9,0.7544]
[1729785228954,3.96646,2521.2,2520.9,0.7544]
[1729785229153,3.96667,2521.1,2520.9,0.7544]
[1729785229377,3.96667,2521.0,2520.9,0.7544]
[1729785229556,3.96667,2521.0,2520.7,0.8173]
[1729785230651,3.96695,2520.9,2520.7,0.8173]
[1729785231065,3.96664,2521.1,2520.7,0.8173]
[1729785231389,3.96679,2521.0,2520.7,0.8173]
[1729785231690,3.96686,2520.9,2520.7,0.8173]
[1729785231891,3.96669,2521.0,2520.7,0.8173]
[1729785232265,3.96645,2521.2,2520.7,5.659561]
[1729785232459,3.96645,2521.2,2520.7,4.78436]
[1729785232873,3.96669,2521.0,2520.7,0.8173]
[1729785233698,3.9669,2520.9,2520.7,0.8173]
[1729785234063,3.96699,2520.8,2520.7,0.8173]
[1729785234367,3.96669,2521.0,2520.7,0.8173]
[1729785234573,3.96669,2521.0,2520.2,3.31214266]
[1729785234574,3.96706,2520.8,2520.4,0.8057]
[1729785234799,3.96706,2520.8,2520.4,4.77328]
[1729785235091,3.96706,2520.8,2520.4,0.8057]
[1729785236783,3.96715,2520.7,2520.4,0.8057]
[1729785237186,3.96746,2520.5,2520.4,0.8057]
[1729785237394,3.96746,2520.6,2520.4,0.8057]
[1729785238271,3.96722,2520.7,2520.4,0.8057]
[1729785240088,7.93446,2520.7,2520.4,0.8057]
[1729785240310,3.96722,2520.7,2520.4,0.8057]
[1729785241316,3.96743,2520.6,2520.4,0.8057]
[1729785241514,3.96778,2520.3,2520.1,0.7689]
[1729785241698,3.96793,2520.2,2520.1,0.7689]
[1729785242178,3.96778,2520.3,2519.8,4.72649]
[1729785242179,3.96791,2520.3,2519.8,4.72649]
[1729785242380,3.968,2520.2,2519.8,0.758]
[1729785242690,4.45332,2520.7,2519.8,0.758]
[1729785242691,7.93632,2520.1,2519.8,0.758]
[1729785242885,3.96809,2520.1,2519.8,0.758]
[1729785243586,3.96763,2520.4,2519.9,3.96833]
[1729785243789,3.96723,2520.7,2520.3,0.7993]
[1729785243993,3.96714,2520.8,2520.3,0.7993]
[1729785244198,3.96716,2520.7,2520.3,0.7993]
[1729785244882,3.96746,2520.5,2520.3,0.7993]
[1729785245107,3.96724,2520.7,2520.3,0.7993]
[1729785245303,3.96738,2520.6,2520.3,0.7993]
[1729785245810,3.9671,2520.8,2520.3,0.7993]
[1729785246034,3.9671,2520.8,2520.3,4.76707]
[1729785246634,7.9342,2520.8,2520.3,4.76707]
[1729785246921,3.96717,2520.7,2520.3,4.76699]
[1729785247934,6.08894061,2521.1,2520.3,1.672799]
[1729785248233,3.96675,2521.0,2520.5,3.96745]
[1729785248434,3.96653,2521.1,2520.6,3.96728]
[1729785248593,3.96629,2521.3,2520.8,3.9669]
[1729785248998,5.60229061,2521.4,2520.9,0.8319]
[1729785249190,3.9661,2521.4,2520.9,0.8319]
[1729785249430,3.9663,2521.3,2520.9,4.79873]
[1729785249643,5.60203061,2521.6,2521.1,3.96648]
[1729785249802,3.96584,2521.6,2521.1,0.7614]
[1729785250006,3.96605,2521.4,2521.1,0.7614]
[1729785250448,3.96596,2521.5,2521.1,4.7279]
[1729785250598,3.96596,2521.5,2521.1,0.7614]
[1729785251091,3.9657,2521.7,2521.3,3.96617]
[1729785251292,3.9657,2521.7,2521.2,3.96626]
[1729785252294,3.9657,2521.7,2521.3,4.72879]
[1729785253568,3.9657,2521.7,2521.3,0.7626]
[1729785253706,3.96537,2521.9,2521.3,0.7626]
[1729785254055,3.96543,2521.8,2521.3,4.72872]
[1729785254203,3.96543,2521.8,2521.4,1.20864463]
[1729785254604,3.96558,2521.7,2521.4,1.20864463]
[1729785254805,3.96537,2521.9,2521.4,1.287958]
[1729785255011,3.96537,2521.9,2521.5,0.7839]
[1729785255217,3.96537,2521.9,2521.5,4.74977]
[1729785255448,3.96537,2521.9,2521.6,0.59584146]
[1729785255741,3.96512,2522.0,2521.6,0.59584146]
[1729785255958,3.96504,2522.1,2521.6,0.59584146]
[1729785255959,3.96504,2522.1,2521.6,0.67515066]
[1729785256165,3.96504,2522.1,2521.7,0.7769]
[1729785256508,3.96504,2522.1,2521.7,4.54247]
[1729785257306,3.0,2522.5,2521.7,4.62163542]
[1729785257307,3.96447,2522.4,2521.7,4.62163542]
[1729785257455,3.96472,2522.3,2521.8,3.96533]
[1729785257610,3.96472,2522.3,2521.8,3.31214266]
[1729785257811,3.96449,2522.4,2521.9,4.0445607]
[1729785258025,3.96423,2522.6,2522.1,3.96493]
[1729785258220,3.96423,2522.6,2522.0,3.31214266]
[1729785258420,3.96423,2522.6,2521.9,3.96516]
[1729785258421,3.96432,2522.5,2521.9,3.96516]
[1729785258613,3.9646,2522.4,2521.9,3.96516]
[1729785258834,3.96432,2522.5,2521.9,3.96516]
[1729785259054,3.96448,2522.4,2521.9,4.77808234]
[1729785259555,3.96464,2522.3,2522.0,0.7717]
[1729785260116,3.96479,2522.2,2522.0,0.7717]
[1729785260453,3.96504,2522.1,2521.8,0.8193]
[1729785260964,3.96475,2522.3,2521.8,4.86400265]
[1729785261175,3.96445,2522.5,2522.1,0.8193]
[1729785261344,3.96449,2522.4,2522.1,0.8193]
[1729785262592,0.79285,2522.5,2522.1,0.8193]
[1729785262734,3.96469,2522.3,2522.1,0.8193]
[1729785263136,7.92907,2522.4,2522.1,0.8193]
[1729785263376,3.96447,2522.4,2522.1,0.8193]
[1729785263672,3.96464,2522.3,2522.1,0.8193]
[1729785265145,3.96447,2522.4,2522.1,0.8193]
[1729785265563,3.96425,2522.6,2522.1,0.8193]
[1729785265736,3.96432,2522.5,2522.1,0.89859031]
[1729785265941,3.96432,2522.5,2522.1,0.8193]
[1729785266159,3.9645,2522.4,2522.1,0.8193]
[1729785266567,3.96466,2522.3,2522.1,0.8193]
[1729785267040,3.96479,2522.2,2522.1,0.8193]
[1729785267236,3.96479,2522.2,2521.7,4.79573]
[1729785268140,3.96497,2522.1,2521.7,0.8302]
[1729785268368,3.96497,2522.1,2521.7,4.79577]
[1729785268671,3.96466,2522.3,2521.7,4.79577]
[1729785268874,4.429736,2522.3,2521.7,4.79575]
[1729785269076,4.429736,2522.3,2521.7,0.8302]
[1729785269077,3.96495,2522.1,2521.7,0.8302]